bitfinex-derivatives/quotes_BNBF0:USTF0_20251027
["timestamp","ask_amount","ask_price","bid_price","bid_amount"]
[1761566322841,0.15,1180.0,1176.4,1.269]
[1761566323143,0.15,1180.0,1176.6,0.60227792]
[1761566323348,0.15,1180.0,1176.7,1.12196244]
[1761566323547,0.15,1180.0,1176.4,2.07203722]
[1761566323548,0.15,1180.0,1176.8,0.51968452]
[1761566323747,0.15,1180.0,1176.9,0.51968452]
[1761566324045,0.15,1180.0,1176.4,1.269]
[1761566324243,0.15,1180.0,1176.5,0.51946947]
[1761566324446,0.15,1180.0,1176.6,0.51946947]
[1761566324644,0.15,1180.0,1176.7,0.51946947]
[1761566324947,0.15,1180.0,1176.8,0.51946947]
[1761566325148,0.15,1180.0,1176.4,1.87127792]
[1761566325448,0.15,1180.0,1176.5,0.51928523]
[1761566325649,0.15,1180.0,1176.6,0.51928523]
[1761566325945,0.15,1180.0,1176.7,0.51928523]
[1761566326149,0.15,1180.0,1176.4,1.269]
[1761566326347,0.15,1180.0,1176.5,0.51975766]
[1761566326545,0.15,1180.0,1176.6,0.51975766]
[1761566326750,0.15,1180.0,1176.4,1.269]
[1761566326947,0.15,1180.0,1176.5,0.51975766]
[1761566327145,0.15,1180.0,1176.6,0.51975766]
[1761566327352,0.15,1180.0,1176.4,1.269]
[1761566327546,0.15,1180.0,1176.5,0.51994776]
[1761566327847,0.15,1180.0,1176.6,0.51994776]
[1761566328050,0.15,1180.0,1176.4,1.269]
[1761566328251,0.15,1180.0,1176.5,0.52005333]
[1761566328452,0.15,1180.0,1176.4,1.269]
[1761566328645,0.15,1180.0,1176.5,0.52033587]
[1761566328851,0.15,1180.0,1176.4,1.269]
[1761566331752,0.15,1180.0,1176.5,0.52133073]
[1761566332052,0.15,1180.0,1176.4,1.269]
[1761566333352,0.15,1180.0,1176.5,0.52197163]
[1761566333552,0.15,1180.0,1176.4,1.269]
[1761566333753,0.15,1180.0,1176.5,0.52190988]
[1761566333953,0.15,1180.0,1176.4,1.269]
[1761566334254,0.15,1180.0,1176.5,0.52190988]
[1761566334452,0.15,1180.0,1176.4,1.269]
[1761566334753,0.15,1180.0,1176.5,0.52226446]
[1761566334948,0.15,1180.0,1176.4,1.269]
[1761566335152,0.15,1180.0,1176.5,0.52226446]
[1761566335350,0.15,1180.0,1176.4,1.269]
[1761566335554,0.15,1180.0,1176.5,0.52266513]
[1761566335752,0.15,1180.0,1176.4,1.269]
[1761566335951,0.15,1180.0,1176.5,0.52268122]
[1761566336149,0.15,1180.0,1176.4,1.269]
[1761566336553,0.15,1180.0,1176.5,0.52321022]
[1761566336750,0.15,1180.0,1176.4,1.269]
[1761566336955,0.15,1180.0,1176.5,0.52330599]
[1761566337254,0.15,1180.0,1176.4,1.269]
[1761566337452,0.15,1180.0,1176.5,0.52371669]
[1761566337750,0.15,1180.0,1176.4,1.269]
[1761566337955,0.15,1180.0,1176.5,0.52385366]
[1761566338155,0.15,1180.0,1176.6,0.52355195]
[1761566338355,0.15,1180.0,1176.7,0.52355195]
[1761566338554,0.15,1180.0,1176.4,1.269]
[1761566338758,0.15,1180.0,1176.5,0.52400787]
[1761566338953,0.15,1180.0,1176.6,0.52400787]
[1761566339258,0.15,1180.0,1176.4,1.269]
[1761566339553,0.15,1180.0,1176.5,0.52427663]
[1761566339757,0.15,1180.0,1176.6,0.52427663]
[1761566339957,0.15,1180.0,1176.7,0.52427663]
[1761566340157,0.15,1180.0,1176.8,0.52427663]
[1761566340358,0.15,1180.0,1176.4,1.269]
[1761566340658,0.15,1180.0,1176.5,0.52405876]
[1761566340957,0.15,1180.0,1176.6,0.52405876]
[1761566341154,0.15,1180.0,1176.7,0.52405876]
[1761566341358,0.15,1180.0,1176.8,0.52405876]
[1761566341554,0.15,1180.0,1176.9,0.52405876]
[1761566341858,0.15,1180.0,1177.0,0.52405876]
[1761566342156,0.15,1180.0,1177.1,0.52405876]
[1761566342358,0.15,1180.0,1177.2,0.52405876]
[1761566342658,0.15,1180.0,1176.5,0.60227792]
[1761566342857,0.15,1180.0,1176.6,0.52377562]
[1761566343056,0.15,1180.0,1176.7,0.52377562]
[1761566343255,0.15,1180.0,1176.8,0.52377562]
[1761566343554,0.15,1180.0,1176.9,0.52377562]
[1761566343858,0.15,1180.0,1177.0,0.52377562]
[1761566344059,0.15,1180.0,1177.1,0.52377562]
[1761566344354,0.15,1180.0,1177.2,0.52377562]
[1761566344558,0.15,1180.0,1176.4,1.87127792]
[1761566344559,0.15,1180.0,1177.3,0.52377562]
[1761566344754,0.15,1180.0,1176.4,1.87127792]
[1761566344956,0.15,1180.0,1176.5,0.52399279]
[1761566345158,0.15,1180.0,1176.6,0.52399279]
[1761566345353,0.15,1180.0,1176.7,0.52430391]
[1761566345559,0.15,1180.0,1176.8,0.52430391]
[1761566345855,0.15,1180.0,1176.9,0.52430391]
[1761566346059,0.15,1180.0,1177.0,0.52430391]
[1761566346258,0.15,1180.0,1176.6,0.60751189]
[1761566346759,0.15,1180.0,1176.7,0.52462363]
[1761566347053,0.15,1180.0,1176.8,0.52462363]
[1761566347254,0.15,1180.0,1177.3,0.60751189]
[1761566347456,0.15,1180.0,1177.4,0.52462363]
[1761566347655,0.15,1180.0,1177.5,0.52462363]
[1761566347859,0.15,1180.0,1177.6,0.52462363]
[1761566348154,0.15,1180.0,1177.7,0.52462363]
[1761566348358,0.15,1180.0,1177.1,0.60751189]
[1761566348560,0.15,1180.0,1177.2,0.52357942]
[1761566348766,0.15,1180.0,1177.3,0.52357942]
[1761566348956,0.15,1180.0,1177.4,0.52357942]
[1761566349155,0.15,1180.0,1177.5,0.52357942]
[1761566349456,0.15,1180.0,1177.6,0.52357942]
[1761566349656,0.15,1180.0,1177.7,0.52357942]
[1761566349959,0.15,1180.0,1177.8,0.52385877]
[1761566350157,0.15,1180.0,1177.9,0.52385877]
[1761566350455,0.15,1180.0,1176.9,0.60751189]
[1761566350660,0.15,1180.0,1177.0,0.52408659]
[1761566350862,0.15,1180.0,1177.0,1.13159848]
[1761566351159,0.15,1180.0,1177.1,0.52408659]
[1761566351356,0.15,1180.0,1177.2,0.52408659]
[1761566351561,0.15,1180.0,1177.3,0.52482436]
[1761566351762,0.15,1180.0,1176.8,0.60751189]
[1761566351961,0.15,1180.0,1176.9,1.13235244]
[1761566352260,0.15,1180.0,1177.0,0.52484055]
[1761566352461,0.15,1180.0,1177.1,0.52484055]
[1761566352761,0.15,1180.0,1177.2,0.52484055]
[1761566353062,0.15,1180.0,1177.3,0.52484055]
[1761566353262,0.15,1180.0,1176.4,2.07203722]
[1761566353461,0.15,1180.0,1176.9,0.60800395]
[1761566353762,0.15,1180.0,1177.0,1.13252581]
[1761566353962,0.15,1180.0,1177.1,0.52452186]
[1761566354162,0.15,1180.0,1177.2,0.52452186]
[1761566354360,0.15,1180.0,1177.3,0.52452186]
[1761566354660,0.15,1180.0,1177.4,0.52452186]
[1761566354863,0.15,1180.0,1177.5,0.52452186]
[1761566355061,0.15,1180.0,1177.6,0.52452186]
[1761566355363,0.15,1180.0,1177.7,0.52452186]
[1761566355559,0.15,1180.0,1177.8,0.52452186]
[1761566355760,0.15,1180.0,1177.9,0.52452186]
[1761566355962,0.15,1180.0,1178.0,0.52452186]
[1761566356159,0.15,1180.0,1177.3,0.60800395]
[1761566356362,0.15,1180.0,1177.4,0.52352495]
[1761566356660,0.15,1180.0,1177.5,0.52352495]
[1761566356864,0.15,1180.0,1177.6,0.52352495]
[1761566357065,0.15,1180.0,1177.7,0.52352495]
[1761566357265,0.15,1180.0,1177.8,0.52352495]
[1761566357564,0.15,1180.0,1177.9,0.52352495]
[1761566357765,0.15,1180.0,1177.3,0.60800395]
[1761566357962,0.15,1180.0,1177.4,0.52335428]
[1761566358166,0.15,1180.0,1177.5,0.52335428]
[1761566358366,0.15,1180.0,1177.6,1.13135823]
[1761566358664,0.15,1180.0,1177.7,0.52335428]
[1761566358860,0.15,1180.0,1177.8,0.52335428]
[1761566359063,0.15,1180.0,1177.6,0.60800395]
[1761566359064,0.15,1180.0,1177.9,0.52335428]
[1761566359363,0.15,1180.0,1178.0,0.52335428]
[1761566359561,0.15,1180.0,1177.1,0.60800395]
[1761566359762,0.15,1180.0,1177.2,1.92131605]
[1761566359966,0.15,1180.0,1177.3,0.52331605]
[1761566360966,0.15,1180.0,1177.2,1.398]
[1761566361362,0.15,1180.0,1177.3,0.52395739]
[1761566361563,0.15,1180.0,1177.2,1.398]
[1761566361763,0.15,1180.0,1177.3,0.52395739]
[1761566362063,0.15,1180.0,1177.2,1.398]
[1761566362268,0.15,1180.0,1177.3,0.52359385]
[1761566362466,0.15,1180.0,1177.4,0.52359385]
[1761566362767,0.15,1180.0,1177.5,0.52359385]
[1761566363067,0.15,1180.0,1177.2,1.398]
[1761566363263,0.15,1180.0,1177.3,0.52363615]
[1761566363463,0.15,1180.0,1177.4,0.52363615]
[1761566363662,0.15,1180.0,1177.5,0.52363615]
[1761566363865,0.15,1180.0,1177.2,1.398]
[1761566364065,0.15,1180.0,1177.3,0.5238585]
[1761566364264,0.15,1180.0,1177.2,1.398]
[1761566364463,0.15,1180.0,1177.3,0.52389715]
[1761566364664,0.15,1180.0,1177.4,0.52389715]
[1761566364863,0.15,1180.0,1177.5,0.52389715]
[1761566365163,0.15,1180.0,1177.2,1.398]
[1761566365464,0.15,1180.0,1177.3,0.52387233]
[1761566365668,0.15,1180.0,1177.4,0.52387233]
[1761566365865,0.15,1180.0,1177.5,0.52387233]
[1761566366064,0.15,1180.0,1177.2,1.398]
[1761566366266,0.15,1180.0,1177.3,0.52388554]
[1761566366562,0.15,1180.0,1177.4,0.52355182]
[1761566366764,0.15,1180.0,1177.5,0.52355182]
[1761566367067,0.15,1180.0,1177.6,0.52355182]
[1761566367365,0.15,1180.0,1177.2,1.398]
[1761566367565,0.15,1180.0,1177.3,0.52365904]
[1761566367864,0.15,1180.0,1177.4,0.52365904]
[1761566368066,0.15,1180.0,1177.5,0.52365904]
[1761566368266,0.15,1180.0,1177.2,1.398]
[1761566368467,0.15,1180.0,1177.3,0.52360194]
[1761566368668,0.15,1180.0,1177.4,0.52360194]
[1761566368969,0.15,1180.0,1177.5,0.52360194]
[1761566369170,0.15,1180.0,1177.6,0.52360194]
[1761566369370,0.15,1180.0,1177.7,0.52360194]
[1761566369566,0.15,1180.0,1177.8,0.52360194]
[1761566369769,0.15,1180.0,1177.2,1.398]
[1761566369971,0.15,1180.0,1177.4,0.60733912]
[1761566370170,0.15,1180.0,1177.5,0.5229159]
[1761566370867,0.15,1180.0,1177.6,0.5229159]
[1761566371168,0.15,1180.0,1177.7,0.5229159]
[1761566371372,0.15,1180.0,1177.8,0.5229159]
[1761566371666,0.15,1180.0,1177.9,0.5229159]
[1761566371870,0.15,1180.0,1177.4,0.60733912]
[1761566372071,0.15,1180.0,1177.5,1.12994386]
[1761566372271,0.15,1180.0,1177.6,0.52260474]
[1761566372864,0.15,1180.0,1177.7,0.52260474]
[1761566373071,0.15,1180.0,1177.8,0.52260474]
[1761566373271,0.15,1180.0,1177.9,0.52260474]
[1761566373468,0.15,1180.0,1177.3,0.60733912]
[1761566373771,0.15,1180.0,1177.4,1.12976638]
[1761566373971,0.15,1180.0,1177.5,0.52242726]
[1761566374171,0.15,1180.0,1177.6,0.52242726]
[1761566374377,0.15,1180.0,1177.7,0.52242726]
[1761566374572,0.15,1180.0,1177.8,0.52242726]
[1761566374770,0.15,1180.0,1177.9,0.52242726]
[1761566374974,0.15,1180.0,1178.0,0.52242726]
[1761566375170,0.15,1180.0,1178.1,0.52242726]
[1761566375374,0.15,1180.0,1177.4,0.60733912]
[1761566375674,0.15,1180.0,1177.5,0.52208469]
[1761566375874,0.15,1180.0,1177.6,0.52208469]
[1761566376071,0.15,1180.0,1177.7,0.52208469]
[1761566376371,0.15,1180.0,1177.8,0.52208469]
[1761566376674,0.15,1180.0,1177.2,1.398]
[1761566376876,0.15,1180.0,1177.3,0.52293793]
[1761566377075,0.15,1180.0,1177.2,1.398]
[1761566377371,0.15,1180.0,1177.3,0.52285663]
[1761566377574,0.15,1180.0,1177.2,1.398]
[1761566377772,0.15,1180.0,1177.3,0.52290525]
[1761566377976,0.15,1180.0,1177.2,1.398]
[1761566378177,0.15,1180.0,1177.3,0.52290525]
[1761566378375,0.15,1180.0,1177.2,1.398]
[1761566378575,0.15,1180.0,1177.3,0.52298502]
[1761566378774,0.15,1180.0,1177.2,1.398]
[1761566378979,0.15,1180.0,1177.3,0.52298484]
[1761566379177,0.15,1180.0,1177.2,1.398]
[1761566379478,0.15,1180.0,1177.3,0.52278121]
[1761566379778,0.15,1180.0,1177.2,1.398]
[1761566379975,0.15,1180.0,1177.3,0.52278124]
[1761566380180,0.15,1180.0,1177.2,1.398]
[1761566381482,0.15,1180.0,1177.3,0.52309044]
[1761566381684,0.15,1180.0,1177.4,0.52309044]
[1761566381880,0.15,1180.0,1177.5,0.52309044]
[1761566382178,0.15,1180.0,1177.2,1.398]
[1761566382382,0.15,1180.0,1177.3,0.52327729]
[1761566382583,0.15,1180.0,1177.2,1.398]
[1761566383178,0.15,1180.0,1177.3,0.52289794]
[1761566383379,0.15,1180.0,1177.4,0.52289794]
[1761566383678,0.15,1180.0,1177.5,0.52289794]
[1761566383881,0.15,1180.0,1177.6,0.52289794]
[1761566384080,0.15,1180.0,1177.7,0.52289794]
[1761566384282,0.15,1180.0,1177.8,0.52289794]
[1761566384481,0.15,1180.0,1177.2,1.398]
[1761566384681,0.15,1180.0,1177.3,0.52267883]
[1761566384880,0.15,1180.0,1177.4,0.52267883]
[1761566385084,0.15,1180.0,1177.2,1.398]
[1761566385085,0.15,1180.0,1177.5,0.52267883]
[1761566385284,0.15,1180.0,1177.2,1.398]
[1761566385285,0.15,1180.0,1177.6,0.52267883]
[1761566385482,0.15,1180.0,1177.7,0.52267883]
[1761566385685,0.15,1180.0,1177.8,0.52267883]
[1761566385885,0.15,1180.0,1177.9,0.52255036]
[1761566386181,0.15,1180.0,1178.0,0.52255036]
[1761566386385,0.15,1180.0,1178.1,0.52255036]
[1761566386682,0.15,1180.0,1178.2,0.52255036]
[1761566386885,0.15,1180.0,1177.3,0.60733912]
[1761566387185,0.15,1180.0,1177.4,1.12960923]
[1761566387384,0.15,1180.0,1177.5,0.52227011]
[1761566387584,0.15,1180.0,1177.6,0.52227011]
[1761566387785,0.15,1180.0,1177.7,0.52227011]
[1761566387985,0.15,1180.0,1177.8,0.52227011]
[1761566388181,0.15,1180.0,1177.9,0.52227011]
[1761566388381,0.15,1180.0,1178.0,0.52227011]
[1761566388582,0.15,1180.0,1177.6,0.60733912]
[1761566388783,0.15,1180.0,1177.7,0.52244107]
[1761566388983,0.15,1180.0,1177.8,0.52244107]
[1761566389182,0.15,1180.0,1177.5,0.60733912]
[1761566389183,0.15,1180.0,1177.9,0.52244107]
[1761566389485,0.15,1180.0,1178.0,1.60929612]
[1761566389685,0.15,1180.0,1178.1,0.52229612]
[1761566389883,0.15,1180.0,1178.0,1.087]
[1761566390181,0.15,1180.0,1178.1,0.52250506]
[1761566390386,0.15,1180.0,1178.2,0.52250506]
[1761566390586,0.15,1180.0,1178.3,0.52250506]
[1761566390784,0.15,1180.0,1178.4,0.52250506]
[1761566390983,0.15,1180.0,1178.0,1.087]
[1761566391186,0.15,1180.0,1178.1,0.52201667]
[1761566391388,0.15,1180.0,1178.2,0.52201667]
[1761566391586,0.15,1180.0,1178.3,0.52201667]
[1761566391887,0.15,1180.0,1178.4,0.52201667]
[1761566392182,0.15,1180.0,1178.5,0.52201667]
[1761566392383,0.15,1180.0,1178.6,0.52201667]
[1761566392584,0.15,1180.0,1178.0,1.087]
[1761566392783,0.15,1180.0,1178.1,0.52186147]
[1761566393086,0.15,1180.0,1178.0,1.087]
[1761566393087,0.15,1180.0,1178.2,0.52186147]
[1761566393283,0.15,1180.0,1178.3,0.52186147]
[1761566393488,0.15,1180.0,1178.4,0.52186147]
[1761566393688,0.15,1180.0,1178.5,1.12920059]
[1761566393987,0.15,1180.0,1178.8,0.60733912]
[1761566394187,0.15,1180.0,1178.9,0.52186147]
[1761566394382,0.15,1180.0,1179.0,0.52186147]
[1761566394584,0.15,1180.0,1179.1,0.52186147]
[1761566394783,0.15,1180.0,1178.5,0.60733912]
[1761566394987,0.15,1180.0,1178.6,0.5208053]
[1761566395282,0.15,1180.0,1178.7,0.5208053]
[1761566395487,0.15,1180.0,1178.8,0.5208053]
[1761566395686,0.15,1180.0,1178.9,0.5208053]
[1761566395988,0.15,1180.0,1179.0,0.52046617]
[1761566396187,0.15,1180.0,1179.1,0.52046617]
[1761566396389,0.15,1180.0,1178.5,0.60733912]
[1761566396585,0.15,1180.0,1178.6,1.12771763]
[1761566396789,0.15,1180.0,1178.7,0.52037851]
[1761566396986,0.15,1180.0,1178.8,0.52037851]
[1761566397192,0.15,1180.0,1178.9,0.52037851]
[1761566397396,0.15,1180.0,1179.0,0.52037851]
[1761566397596,0.15,1180.0,1178.5,0.60733912]
[1761566397890,0.15,1180.0,1178.6,0.52033345]
[1761566398099,0.15,1180.0,1178.7,0.52033345]
[1761566398297,0.15,1180.0,1178.8,0.52033345]
[1761566398596,0.15,1180.0,1178.9,0.52033345]
[1761566398798,0.15,1180.0,1179.0,0.52033345]
[1761566398998,0.15,1180.0,1178.6,0.60733912]
[1761566399199,0.15,1180.0,1178.7,0.52024828]
[1761566399392,0.15,1180.0,1178.8,0.52024828]
[1761566399595,0.15,1180.0,1178.9,0.52024828]
[1761566399794,0.15,1180.0,1179.0,0.52024828]
[1761566399996,0.15,1180.0,1179.1,0.52024828]
[1761566400293,0.15,1180.0,1179.2,0.52024828]
[1761566400497,0.15,1180.0,1179.3,0.52024828]
[1761566400694,0.15,1180.0,1178.7,0.60733912]
[1761566400894,0.15,1180.0,1178.8,0.51988168]
[1761566401194,0.15,1180.0,1178.9,0.51988168]
[1761566401498,0.15,1180.0,1179.0,0.51988168]
[1761566401795,0.14739861,1182.6,1179.7,0.80303722]
[1761566401997,2.1456881,1185.7,1180.1,0.60016497]
[1761566402198,0.14728787,1183.7,1180.2,0.51988168]
[1761566402492,2.1456881,1184.3,1180.3,0.51988168]
[1761566402700,2.1456881,1184.4,1180.3,0.60016497]
[1761566402997,0.14720906,1184.0,1180.4,0.51988168]
[1761566403198,2.1456881,1185.5,1180.5,0.51988168]
[1761566403397,2.1456881,1185.8,1180.6,0.51988168]
[1761566403598,0.14718477,1184.3,1180.7,1.12004665]
[1761566403894,2.1456881,1185.5,1180.8,0.51988168]
[1761566404093,0.1471182,1184.5,1180.9,0.51988168]
[1761566404294,0.1471182,1184.5,1181.0,0.51988168]
[1761566404496,0.1471182,1184.5,1181.1,0.51988168]
[1761566404696,0.1471182,1184.5,1181.2,0.51988168]
[1761566404895,0.1471182,1184.5,1180.7,0.60016497]
[1761566405095,0.1471182,1184.5,1180.8,0.51605631]
[1761566405297,0.1471182,1184.5,1181.3,0.60016497]
[1761566405497,0.1471182,1184.5,1180.9,0.51605631]
[1761566405498,4.2977337,1186.8,1181.4,1.11622128]
[1761566405697,2.1456881,1187.2,1181.6,0.60016497]
[1761566405994,8.5954674,1191.1,1181.8,0.60016497]
[1761566405995,0.14706784,1184.8,1181.8,0.60016497]
[1761566406298,2.1456881,1188.1,1181.9,0.51605631]
[1761566406595,0.1470262,1185.9,1181.4,1.273]
[1761566406795,2.1456881,1188.1,1181.5,0.54828988]
[1761566407098,0.14699888,1186.6,1181.6,0.54828988]
[1761566407294,0.14699888,1186.6,1181.4,1.273]
[1761566407598,2.1456881,1186.3,1181.4,1.273]
[1761566408199,0.14699888,1186.6,1181.4,1.273]
[1761566408701,2.1456881,1186.2,1181.4,1.273]
[1761566408900,0.14699888,1186.6,1181.4,1.273]
[1761566410000,2.1456881,1185.9,1181.4,1.273]
[1761566410298,0.14699888,1186.6,1181.4,1.273]
[1761566410597,0.14699888,1186.6,1181.5,0.58450602]
[1761566410804,0.14699888,1186.6,1181.4,1.273]
[1761566415703,2.29268698,1186.6,1181.4,1.273]
[1761566416100,2.1456881,1186.3,1181.4,1.273]
[1761566416601,0.14699888,1186.6,1181.4,1.273]
[1761566423608,0.14699888,1186.6,1180.2,0.60016497]
[1761566423810,0.14699888,1186.6,1180.3,1.16292398]
[1761566424007,0.14699888,1186.6,1180.4,0.56275901]
[1761566424409,0.14699888,1186.6,1180.5,0.56275901]
[1761566424608,0.14699888,1186.6,1180.6,0.56275901]
[1761566424813,0.14699888,1186.6,1180.7,0.56275901]
[1761566425012,0.14699888,1186.6,1180.8,0.56275901]
[1761566425208,0.14699888,1186.6,1180.9,0.56275901]
[1761566425413,0.14699888,1186.6,1180.3,0.60016497]
[1761566425711,0.14699888,1186.6,1180.4,0.56239516]
[1761566425910,0.14699888,1186.6,1180.5,0.56239516]
[1761566426109,0.14699888,1186.6,1180.6,0.56239516]
[1761566426310,0.14699888,1186.6,1180.7,1.44239516]
[1761566426614,0.14699888,1186.6,1180.8,0.56239516]
[1761566426814,0.14699888,1186.6,1180.7,0.88]
[1761566427011,0.14699888,1186.6,1180.8,0.56232634]
[1761566427215,0.14699888,1186.6,1180.7,0.88]
[1761566429018,2.1456881,1186.3,1180.7,0.88]
[1761566429518,0.14699888,1186.6,1180.7,0.88]
[1761566429719,2.1456881,1186.3,1180.7,0.88]
[1761566430213,2.1456881,1186.5,1180.7,0.88]
[1761566430717,0.14699888,1186.6,1180.7,0.88]
[1761566431312,2.1456881,1186.1,1180.7,0.88]
[1761566431814,2.1456881,1185.9,1180.7,0.88]
[1761566432314,2.1456881,1186.0,1180.7,0.88]
[1761566432815,2.1456881,1185.8,1180.7,0.88]
[1761566433218,0.14699888,1186.6,1180.7,0.88]
[1761566434219,2.1456881,1186.2,1180.7,0.88]
[1761566434416,2.1456881,1186.4,1180.7,0.88]
[1761566435019,2.1456881,1185.9,1180.7,0.88]
[1761566435517,2.1456881,1186.0,1180.7,0.88]
[1761566435822,0.14699888,1186.6,1180.7,0.88]
[1761566436817,0.14699888,1186.6,1180.8,0.56461612]
[1761566437018,0.14699888,1186.6,1180.7,0.88]
[1761566437222,0.14699888,1186.6,1180.8,0.56461576]
[1761566437518,0.14699888,1186.6,1180.9,0.56461576]
[1761566437720,0.14699888,1186.6,1180.7,0.88]
[1761566437921,0.14699888,1186.6,1180.8,0.56500625]
[1761566438218,0.14699888,1186.6,1180.7,0.88]
[1761566438522,2.1456881,1186.5,1180.2,0.58590073]
[1761566438822,2.1456881,1186.5,1180.3,0.56582598]
[1761566439121,0.14699888,1186.6,1180.4,0.56582598]
[1761566439321,0.14699888,1186.6,1180.5,0.56582598]
[1761566439522,0.14699888,1186.6,1180.6,0.56582598]
[1761566439820,0.14699888,1186.6,1180.7,0.56582598]
[1761566440021,0.14699888,1186.6,1180.1,0.58590073]
[1761566440423,0.14699888,1186.6,1180.2,1.15180532]
[1761566440622,0.14699888,1186.6,1180.3,0.56590459]
[1761566440818,0.14699888,1186.6,1180.4,0.56590459]
[1761566441119,2.1456881,1186.5,1180.5,0.56590459]
[1761566441318,2.1456881,1186.5,1180.6,0.56754324]
[1761566441522,2.29268698,1186.6,1180.2,0.58590073]
[1761566441922,2.29268698,1186.6,1180.3,1.6085429]
[1761566442219,0.14699888,1186.6,1180.4,0.5675429]
[1761566442721,2.1456881,1186.0,1180.4,0.5675429]
[1761566443224,2.1456881,1186.1,1180.4,0.5675429]
[1761566443623,2.1456881,1185.8,1180.4,0.5675429]
[1761566443822,2.1456881,1185.8,1180.3,1.041]
[1761566444224,2.1456881,1185.0,1180.3,1.041]
[1761566444822,2.1456881,1184.9,1180.3,1.041]
[1761566445224,2.1456881,1185.2,1180.3,1.041]
[1761566445725,2.1456881,1184.8,1180.3,1.041]
[1761566445921,2.1456881,1184.0,1180.3,1.041]
[1761566446421,2.1456881,1184.3,1180.3,1.041]
[1761566447125,2.1456881,1184.6,1180.3,1.041]
[1761566447526,2.1456881,1183.5,1180.3,1.041]
[1761566448126,5.1496515,1183.8,1180.3,1.041]
[1761566448623,3.0039634,1183.8,1180.3,1.041]
[1761566448923,3.0039634,1183.6,1180.3,1.041]
[1761566449627,2.1456881,1183.1,1180.3,1.041]
[1761566449923,3.0039634,1182.5,1180.3,1.041]
[1761566450122,4.2977337,1184.5,1180.3,1.041]
[1761566450423,2.1456881,1183.9,1180.3,1.041]
[1761566450622,2.1456881,1183.5,1180.3,1.041]
[1761566451026,2.1456881,1183.9,1180.3,1.041]
[1761566451522,2.1456881,1183.3,1180.3,1.041]
[1761566452223,2.1456881,1183.8,1180.3,1.041]
[1761566452628,2.1456881,1183.4,1180.3,1.041]
[1761566453026,2.1456881,1182.9,1180.3,1.041]
[1761566453627,2.1456881,1184.1,1180.3,1.041]
[1761566454326,2.1456881,1183.2,1180.3,1.041]
[1761566454626,2.1456881,1183.0,1180.3,1.041]
[1761566455127,2.1456881,1183.3,1180.3,1.041]
[1761566455827,2.1456881,1182.9,1180.3,1.041]
[1761566456331,2.1456881,1182.8,1180.3,1.041]
[1761566456733,4.2977337,1183.9,1180.3,1.041]
[1761566456734,2.1456881,1183.8,1180.3,1.041]
[1761566457231,4.2977337,1183.9,1180.3,1.041]
[1761566457732,2.1456881,1182.6,1180.3,1.041]
[1761566458227,3.0039634,1183.0,1180.3,1.041]
[1761566458831,2.1456881,1182.9,1180.3,1.041]
[1761566459426,2.1456881,1182.8,1180.3,1.041]
[1761566459928,2.1456881,1182.7,1180.3,1.041]
[1761566460532,2.1456881,1182.4,1180.3,1.041]
[1761566461430,2.1456881,1182.5,1180.3,1.041]
[1761566462033,2.1456881,1182.8,1180.3,1.041]
[1761566462430,2.1456881,1183.3,1180.3,1.041]
[1761566463130,2.1456881,1183.1,1180.3,1.041]
[1761566463533,2.1456881,1183.0,1180.3,1.041]
[1761566464133,2.1456881,1183.2,1180.3,1.041]
[1761566464528,2.1456881,1183.4,1180.3,1.041]
[1761566465029,2.1456881,1182.8,1180.3,1.041]
[1761566465731,2.1456881,1183.3,1180.3,1.041]
[1761566466138,2.1456881,1183.4,1180.3,1.041]
[1761566466637,2.1456881,1183.3,1180.3,1.041]
[1761566467135,2.1456881,1182.6,1180.3,1.041]
[1761566467337,2.1456881,1183.3,1180.3,1.041]
[1761566467935,2.1456881,1183.2,1180.3,1.041]
[1761566468434,2.1456881,1182.7,1180.3,1.041]
[1761566469438,2.1456881,1182.8,1180.3,1.041]
[1761566469939,2.1456881,1182.7,1180.3,1.041]
[1761566470939,2.1456881,1182.4,1180.3,1.041]
[1761566471540,3.0039634,1182.8,1180.3,1.041]
[1761566471736,2.1456881,1182.9,1180.3,1.041]
[1761566471936,2.1456881,1182.8,1180.3,1.041]
[1761566472740,3.0039634,1183.3,1180.3,1.041]
[1761566472938,4.2977337,1184.1,1180.3,1.041]
[1761566473844,2.1456881,1182.5,1180.3,1.041]
[1761566474238,2.1456881,1182.3,1180.3,1.041]
[1761566475238,2.1456881,1182.4,1180.3,1.041]
[1761566475744,3.0039634,1182.8,1180.3,1.041]
[1761566476048,3.0039634,1183.5,1180.3,1.041]
[1761566476246,2.1456881,1182.2,1180.3,1.041]
[1761566476849,2.1456881,1182.3,1180.3,1.041]
[1761566477349,2.1456881,1182.4,1180.3,1.041]
[1761566477747,3.0039634,1182.8,1180.3,1.041]
[1761566478045,2.1456881,1183.0,1180.3,1.041]
[1761566478348,2.1456881,1183.1,1180.3,1.041]
[1761566478845,2.1456881,1183.2,1180.3,1.041]
[1761566479948,2.1456881,1183.0,1180.3,1.041]
[1761566480248,2.1456881,1182.7,1180.3,1.041]
[1761566480650,2.1456881,1182.8,1180.3,1.041]
[1761566481152,3.0039634,1183.1,1180.3,1.041]
[1761566481348,2.1456881,1183.2,1180.3,1.041]
[1761566482853,2.1456881,1183.7,1180.3,1.041]
[1761566483154,2.1456881,1182.3,1180.3,1.041]
[1761566483753,2.1456881,1182.2,1180.3,1.041]